[Event "Pobeskydi 2026"]
[Site "Frydek-Mistek, Czech Republic"]
[Date "2026.04.03"]
[Round "3.11"]
[White "Vancakova, Veronika"]
[Black "Durovka, Marek"]
[Result "1/2-1/2"]
[TimeControl "90 min+30s/move"]
[WhiteTitle "-"]
[BlackTitle "-"]
[WhiteFideId "23731907"]
[BlackFideId "14959542"]
[WhiteElo "1937"]
[BlackElo "2054"]

1. d4 {[%clk 01:30:57]} {[%emt 00:00:03]} Nf6 {[%clk 01:30:43]} {[%emt
00:00:08]} 2. c4 {[%clk 01:31:25]} {[%emt 00:00:12]} e6 {[%clk 01:31:03]}
{[%emt 00:00:10]} 3. Nc3 {[%clk 01:31:49]} {[%emt 00:00:06]} Bb4 {[%clk
01:31:19]} {[%emt 00:00:14]} 4. e3 {[%clk 01:32:11]} {[%emt 00:00:08]} O-O
{[%clk 01:31:32]} {[%emt 00:00:16]} 5. Bd3 {[%clk 01:32:03]} {[%emt 00:00:38]}
d5 {[%clk 01:31:20]} {[%emt 00:00:42]} 6. Nf3 {[%clk 01:30:57]} {[%emt
00:01:37]} b6 {[%clk 01:18:11]} {[%emt 00:13:39]} 7. cxd5 {[%clk 01:29:17]}
{[%emt 00:02:10]} exd5 {[%clk 01:16:30]} {[%emt 00:02:11]} 8. O-O {[%clk
01:29:15]} {[%emt 00:00:32]} Bg4 {[%clk 01:08:08]} {[%emt 00:08:52]} 9. a3
{[%clk 01:21:05]} {[%emt 00:08:40]} Bxc3 {[%clk 01:03:16]} {[%emt 00:05:22]} 10.
bxc3 {[%clk 01:21:29]} {[%emt 00:00:06]} Ne4 {[%clk 01:01:18]} {[%emt
00:02:28]} 11. Bb2 {[%clk 01:18:24]} {[%emt 00:03:35]} Qf6 {[%clk 00:53:04]}
{[%emt 00:08:44]} 12. Be2 {[%clk 01:17:30]} {[%emt 00:01:25]} Nc6 {[%clk
00:51:50]} {[%emt 00:01:43]} 13. Qc2 {[%clk 01:06:12]} {[%emt 00:11:48]} Na5
{[%clk 00:29:53]} {[%emt 00:22:28]} 14. Ne5 {[%clk 00:57:49]} {[%emt 00:08:52]}
Bxe2 {[%clk 00:26:29]} {[%emt 00:03:55]} 15. Qxe2 {[%clk 00:58:13]} {[%emt
00:00:05]} Qe6 {[%clk 00:26:45]} {[%emt 00:00:14]} 16. a4 {[%clk 00:52:30]}
{[%emt 00:06:13]} f6 {[%clk 00:26:09]} {[%emt 00:01:06]} 17. Nd3 {[%clk
00:52:36]} {[%emt 00:00:23]} Nc4 {[%clk 00:25:42]} {[%emt 00:00:59]} 18. Qc2
{[%clk 00:45:37]} {[%emt 00:07:28]} c6 {[%clk 00:23:15]} {[%emt 00:02:57]} 19.
Ba3 {[%clk 00:36:53]} {[%emt 00:09:15]} Rfe8 {[%clk 00:23:23]} {[%emt
00:00:22]} 20. Rfe1 {[%clk 00:36:56]} {[%emt 00:00:27]} Qf5 {[%clk 00:10:56]}
{[%emt 00:12:56]} 21. Nb2 {[%clk 00:34:49]} {[%emt 00:02:37]} Nxb2 {[%clk
00:04:27]} {[%emt 00:06:59]} 22. Qxb2 {[%clk 00:33:45]} {[%emt 00:01:34]} Ng5
{[%clk 00:04:27]} {[%emt 00:00:30]} 23. Qe2 {[%clk 00:28:28]} {[%emt 00:05:47]}
Qg6 {[%clk 00:03:56]} {[%emt 00:01:02]} 24. Kh1 {[%clk 00:28:11]} {[%emt
00:00:47]} h5 {[%clk 00:03:11]} {[%emt 00:01:14]} 25. c4 {[%clk 00:25:09]}
{[%emt 00:03:32]} h4 {[%clk 00:02:28]} {[%emt 00:01:14]} 26. h3 {[%clk
00:23:03]} {[%emt 00:02:36]} Ne4 {[%clk 00:00:45]} {[%emt 00:02:12]} 27. cxd5
{[%clk 00:22:16]} {[%emt 00:01:18]} cxd5 {[%clk 00:01:07]} {[%emt 00:00:08]} 28.
Rac1 {[%clk 00:20:32]} {[%emt 00:02:13]} Rac8 {[%clk 00:00:35]} {[%emt
00:01:03]} 29. Kg1 {[%clk 00:13:32]} {[%emt 00:07:29]} Qf5 {[%clk 00:00:43]}
{[%emt 00:00:22]} 30. Qb2 {[%clk 00:07:34]} {[%emt 00:06:27]} Ng5 {[%clk
00:00:47]} {[%emt 00:00:27]} 31. Kh2 {[%clk 00:07:23]} {[%emt 00:00:41]}
1/2-1/2

[Event "Pobeskydi 2026"]
[Site "Frydek-Mistek, Czech Republic"]
[Date "2026.04.03"]
[Round "4.1"]
[White "Walek, Petr"]
[Black "Sigut, Ondrej"]
[Result "0-1"]
[TimeControl "90 min+30s/move"]
[WhiteTitle "-"]
[BlackTitle "-"]
[WhiteFideId "339393"]
[BlackFideId "23712813"]
[WhiteElo "2304"]
[BlackElo "2016"]

1. e4 {[%clk 01:30:59]} e6 {[%clk 01:30:57]} {[%emt 00:00:04]} 2. d4 {[%clk
01:31:19]} {[%emt 00:00:10]} d5 {[%clk 01:31:24]} {[%emt 00:00:04]} 3. Nc3
{[%clk 01:31:41]} {[%emt 00:00:08]} Nf6 {[%clk 01:31:48]} {[%emt 00:00:06]} 4.
e5 {[%clk 01:32:06]} {[%emt 00:00:06]} Nfd7 {[%clk 01:32:14]} {[%emt 00:00:04]}
5. f4 {[%clk 01:32:30]} {[%emt 00:00:06]} c5 {[%clk 01:32:40]} {[%emt
00:00:04]} 6. Nf3 {[%clk 01:32:55]} {[%emt 00:00:04]} Nc6 {[%clk 01:33:00]}
{[%emt 00:00:10]} 7. Be3 {[%clk 01:33:20]} {[%emt 00:00:05]} Be7 {[%clk
01:33:20]} {[%emt 00:00:10]} 8. Qd2 {[%clk 01:33:36]} {[%emt 00:00:15]} O-O
{[%clk 01:33:39]} {[%emt 00:00:12]} 9. dxc5 {[%clk 01:31:54]} {[%emt 00:02:11]}
Nxc5 {[%clk 01:29:01]} {[%emt 00:05:08]} 10. O-O-O {[%clk 01:29:10]} {[%emt
00:03:13]} a6 {[%clk 01:23:23]} {[%emt 00:06:09]} 11. Qf2 {[%clk 01:23:54]}
{[%emt 00:05:45]} Qa5 {[%clk 01:20:13]} {[%emt 00:03:41]} 12. Kb1 {[%clk
01:21:06]} {[%emt 00:03:18]} Na4 {[%clk 01:09:06]} {[%emt 00:11:37]} 13. Nxa4
{[%clk 01:13:31]} {[%emt 00:08:05]} Qxa4 {[%clk 01:09:29]} {[%emt 00:00:07]} 14.
Nd4 {[%clk 01:13:22]} {[%emt 00:00:39]} Bd7 {[%clk 01:03:51]} {[%emt 00:06:08]}
15. h4 {[%clk 01:02:53]} {[%emt 00:10:59]} f6 {[%clk 00:47:15]} {[%emt
00:17:06]} 16. exf6 {[%clk 00:34:29]} {[%emt 00:28:54]} Bxf6 {[%clk 00:46:26]}
{[%emt 00:01:19]} 17. Nb3 {[%clk 00:32:50]} {[%emt 00:02:09]} Nb4 {[%clk
00:37:37]} {[%emt 00:09:19]} 18. Nc1 {[%clk 00:22:20]} {[%emt 00:11:00]} Rac8
{[%clk 00:35:01]} {[%emt 00:03:06]} 19. Bd3 {[%clk 00:18:38]} {[%emt 00:04:11]}
Nxd3 {[%clk 00:25:54]} {[%emt 00:09:38]} 20. Nxd3 {[%clk 00:17:22]} {[%emt
00:01:46]} Bb5 {[%clk 00:20:19]} {[%emt 00:06:04]} 21. b3 {[%clk 00:12:50]}
{[%emt 00:05:03]} Qa5 {[%clk 00:19:38]} {[%emt 00:01:12]} 22. Bd4 {[%clk
00:12:09]} {[%emt 00:01:11]} Bxd3 {[%clk 00:17:45]} {[%emt 00:02:23]} 23. Rxd3
{[%clk 00:11:56]} {[%emt 00:00:43]} Bxd4 {[%clk 00:16:32]} {[%emt 00:01:42]} 24.
Qxd4 {[%clk 00:11:41]} {[%emt 00:00:45]} Qc7 {[%clk 00:15:38]} {[%emt
00:01:23]} 25. Rc1 {[%clk 00:07:31]} {[%emt 00:04:40]} Rxf4 {[%clk 00:15:12]}
{[%emt 00:00:57]} 26. Qe3 {[%clk 00:07:19]} {[%emt 00:00:42]} Re4 {[%clk
00:15:21]} {[%emt 00:00:20]} 27. Qg5 {[%clk 00:05:23]} {[%emt 00:02:26]} Qd8
{[%clk 00:13:18]} {[%emt 00:02:34]} 28. Qd2 {[%clk 00:04:14]} {[%emt 00:01:38]}
Qxh4 {[%clk 00:11:45]} {[%emt 00:02:04]} 29. Rh3 {[%clk 00:04:20]} {[%emt
00:00:24]} Qf4 {[%clk 00:11:34]} {[%emt 00:00:41]} 30. Qd3 {[%clk 00:04:49]}
{[%emt 00:00:01]} h6 {[%clk 00:10:39]} {[%emt 00:01:25]} 31. Rf3 {[%clk
00:03:56]} {[%emt 00:01:23]} Qg4 {[%clk 00:09:26]} {[%emt 00:01:43]} 32. Qf1
{[%clk 00:02:33]} {[%emt 00:01:53]} Re5 {[%clk 00:07:41]} {[%emt 00:02:15]} 33.
Rd1 {[%clk 00:01:53]} {[%emt 00:01:10]} Qe4 {[%clk 00:06:39]} {[%emt 00:01:32]}
34. Rc1 {[%clk 00:00:41]} {[%emt 00:01:42]} Rf5 {[%clk 00:06:26]} {[%emt
00:00:43]} 35. Rxf5 {[%clk 00:01:02]} {[%emt 00:00:08]} Qxf5 {[%clk 00:06:52]}
{[%emt 00:00:04]} 36. Qe2 {[%clk 00:00:58]} {[%emt 00:00:35]} e5 {[%clk
00:05:50]} {[%emt 00:01:32]} 37. Re1 {[%clk 00:00:39]} {[%emt 00:00:49]} Re8
{[%clk 00:05:09]} {[%emt 00:01:12]} 38. Qd2 {[%clk 00:00:33]} {[%emt 00:00:35]}
e4 {[%clk 00:04:18]} {[%emt 00:01:21]} 39. Re3 {[%clk 00:00:37]} {[%emt
00:00:26]} Qf1+ {[%clk 00:04:04]} {[%emt 00:00:44]} 40. Kb2 {[%clk 00:00:52]}
{[%emt 00:00:15]} Qf6+ {[%clk 00:04:26]} {[%emt 00:00:08]} 41. c3 {[%clk
00:01:16]} {[%emt 00:00:07]} Qe5 {[%clk 00:04:14]} {[%emt 00:00:41]} 42. a4
{[%clk 00:01:25]} {[%emt 00:00:21]} b5 {[%clk 00:04:08]} {[%emt 00:00:36]} 43.
axb5 {[%clk 00:01:20]} {[%emt 00:00:35]} axb5 {[%clk 00:04:34]} {[%emt
00:00:04]} 44. b4 {[%clk 00:01:45]} {[%emt 00:00:05]} Rc8 {[%clk 00:04:15]}
{[%emt 00:00:49]} 45. Qd1 {[%clk 00:01:18]} {[%emt 00:00:58]} Rc4 {[%clk
00:04:03]} {[%emt 00:00:42]} 46. Qa1 {[%clk 00:01:47]} d4 {[%clk 00:03:34]}
{[%emt 00:00:58]} 47. Qa8+ {[%clk 00:00:59]} {[%emt 00:01:17]} Kh7 {[%clk
00:03:58]} {[%emt 00:00:06]} 48. Rh3 {[%clk 00:01:13]} {[%emt 00:00:17]} dxc3+
{[%clk 00:03:41]} {[%emt 00:00:47]} 49. Kc2 {[%clk 00:01:10]} {[%emt 00:00:33]}
e3 {[%clk 00:03:24]} {[%emt 00:00:47]} 50. Qf8 {[%clk 00:00:43]} {[%emt
00:00:57]} Rf4 {[%clk 00:01:43]} {[%emt 00:02:11]} 51. Qc5 {[%clk 00:00:32]}
{[%emt 00:00:41]} Qe4+ {[%clk 00:01:29]} {[%emt 00:00:45]} 52. Kxc3 {[%clk
00:00:42]} {[%emt 00:00:20]} e2 {[%clk 00:01:19]} {[%emt 00:00:40]} 53. Rxh6+
{[%clk 00:00:46]} {[%emt 00:00:26]} Kxh6 {[%clk 00:01:17]} {[%emt 00:00:32]} 54.
Qd6+ {[%clk 00:01:12]} {[%emt 00:00:04]} Rf6 {[%clk 00:01:25]} {[%emt
00:00:22]} 55. Qh2+ {[%clk 00:01:29]} {[%emt 00:00:13]} Kg6 {[%clk 00:01:36]}
{[%emt 00:00:18]} 56. Qg3+ {[%clk 00:01:44]} {[%emt 00:00:16]} Kf7 {[%clk
00:02:00]} {[%emt 00:00:06]} 57. Qc7+ {[%clk 00:02:07]} {[%emt 00:00:06]} Qe7
{[%clk 00:02:26]} {[%emt 00:00:05]} 0-1

[Event "Pobeskydi 2026"]
[Site "Frydek-Mistek, Czech Republic"]
[Date "2026.04.03"]
[Round "4.2"]
[White "Langmaier, Michal"]
[Black "Gnojek, Petr"]
[Result "0-1"]
[TimeControl "90 min+30s/move"]
[WhiteTitle "-"]
[BlackTitle "-"]
[WhiteFideId "23727705"]
[BlackFideId "371807"]
[WhiteElo "1949"]
[BlackElo "2401"]

1. d4 {[%clk 01:30:55]} {[%emt 00:00:04]} g6 {[%clk 01:30:48]} {[%emt
00:00:13]} 2. c4 {[%clk 01:31:08]} {[%emt 00:00:17]} Bg7 {[%clk 01:31:09]}
{[%emt 00:00:08]} 3. g3 {[%clk 01:31:30]} {[%emt 00:00:08]} d6 {[%clk
01:31:29]} {[%emt 00:00:10]} 4. Bg2 {[%clk 01:31:48]} {[%emt 00:00:12]} Nd7
{[%clk 01:31:50]} {[%emt 00:00:10]} 5. Nf3 {[%clk 01:32:01]} {[%emt 00:00:17]}
e5 {[%clk 01:32:12]} {[%emt 00:00:08]} 6. Nc3 {[%clk 01:30:38]} {[%emt
00:01:53]} Ne7 {[%clk 01:32:26]} {[%emt 00:00:15]} 7. e4 {[%clk 01:30:00]}
{[%emt 00:01:08]} exd4 {[%clk 01:32:27]} {[%emt 00:00:30]} 8. Nxd4 {[%clk
01:30:14]} {[%emt 00:00:16]} O-O {[%clk 01:31:22]} {[%emt 00:01:35]} 9. O-O
{[%clk 01:29:52]} {[%emt 00:00:50]} Nc6 {[%clk 01:31:41]} {[%emt 00:00:12]} 10.
Nxc6 {[%clk 01:25:40]} {[%emt 00:04:42]} bxc6 {[%clk 01:32:03]} {[%emt
00:00:09]} 11. Qc2 {[%clk 01:23:18]} {[%emt 00:02:51]} Qf6 {[%clk 01:25:49]}
{[%emt 00:06:44]} 12. Bf4 {[%clk 01:08:09]} {[%emt 00:15:39]} Rb8 {[%clk
01:18:55]} {[%emt 00:07:25]} 13. Rac1 {[%clk 01:01:40]} {[%emt 00:06:57]} Ne5
{[%clk 01:12:47]} {[%emt 00:06:40]} 14. Bxe5 {[%clk 00:56:40]} {[%emt
00:05:30]} Qxe5 {[%clk 01:13:12]} {[%emt 00:00:05]} 15. b3 {[%clk 00:54:48]}
{[%emt 00:02:22]} h5 {[%clk 01:12:03]} {[%emt 00:01:39]} 16. Ne2 {[%clk
00:51:02]} {[%emt 00:04:16]} c5 {[%clk 01:07:31]} {[%emt 00:05:02]} 17. Rcd1
{[%clk 00:45:52]} {[%emt 00:05:40]} h4 {[%clk 01:05:16]} {[%emt 00:02:45]} 18.
Nf4 {[%clk 00:41:07]} {[%emt 00:05:15]} hxg3 {[%clk 01:02:31]} {[%emt
00:03:15]} 19. hxg3 {[%clk 00:35:25]} {[%emt 00:06:12]} Qg5 {[%clk 01:02:08]}
{[%emt 00:00:52]} 20. Nd5 {[%clk 00:33:18]} {[%emt 00:02:37]} Bg4 {[%clk
00:56:11]} {[%emt 00:06:27]} 21. Rd2 {[%clk 00:27:33]} {[%emt 00:06:16]} Rfc8
{[%clk 00:49:25]} {[%emt 00:07:15]} 22. f4 {[%clk 00:24:32]} {[%emt 00:03:31]}
Qd8 {[%clk 00:49:46]} {[%emt 00:00:09]} 23. e5 {[%clk 00:20:08]} {[%emt
00:04:55]} Qe8 {[%clk 00:48:25]} {[%emt 00:01:51]} 24. Re1 {[%clk 00:18:56]}
{[%emt 00:01:41]} dxe5 {[%clk 00:48:36]} {[%emt 00:00:19]} 25. fxe5 {[%clk
00:18:28]} {[%emt 00:00:58]} c6 {[%clk 00:48:22]} {[%emt 00:00:45]} 26. Nf4
{[%clk 00:16:33]} {[%emt 00:02:25]} Bf5 {[%clk 00:36:30]} {[%emt 00:12:22]} 27.
Qd1 {[%clk 00:10:30]} {[%emt 00:06:32]} Rd8 {[%clk 00:35:38]} {[%emt 00:01:23]}
28. Rxd8 {[%clk 00:10:23]} {[%emt 00:00:37]} Rxd8 {[%clk 00:36:05]} {[%emt
00:00:04]} 29. Qe2 {[%clk 00:10:09]} {[%emt 00:00:43]} Qd7 {[%clk 00:36:01]}
{[%emt 00:00:33]} 30. Kh1 {[%clk 00:06:59]} {[%emt 00:03:40]} Re8 {[%clk
00:30:11]} {[%emt 00:06:21]} 31. Qf3 {[%clk 00:06:02]} {[%emt 00:01:26]} Rxe5
{[%clk 00:30:13]} {[%emt 00:00:28]} 32. Rxe5 {[%clk 00:06:00]} {[%emt
00:00:32]} Bxe5 {[%clk 00:30:38]} {[%emt 00:00:05]} 33. Qxc6 {[%clk 00:05:30]}
{[%emt 00:01:01]} Qd1+ {[%clk 00:28:31]} {[%emt 00:02:37]} 34. Kh2 {[%clk
00:05:55]} {[%emt 00:00:05]} Bd4 {[%clk 00:28:56]} {[%emt 00:00:04]} 35. Qe8+
{[%clk 00:05:08]} {[%emt 00:01:18]} Kg7 {[%clk 00:29:22]} {[%emt 00:00:04]} 36.
Ne2 {[%clk 00:04:01]} {[%emt 00:01:37]} Qe1 {[%clk 00:29:17]} {[%emt 00:00:35]}
0-1

[Event "Pobeskydi 2026"]
[Site "Frydek-Mistek, Czech Republic"]
[Date "2026.04.03"]
[Round "4.3"]
[White "Osina, Jaromir"]
[Black "Karas, Marek"]
[Result "0-1"]
[TimeControl "90 min+30s/move"]
[WhiteTitle "-"]
[BlackTitle "-"]
[WhiteFideId "23712759"]
[BlackFideId "14928558"]
[WhiteElo "1972"]
[BlackElo "2232"]

1. d4 {[%clk 01:30:58]} {[%emt 00:00:01]} d5 {[%clk 01:30:59]} {[%emt
00:00:01]} 2. c4 {[%clk 01:31:25]} {[%emt 00:00:05]} e6 {[%clk 01:31:21]}
{[%emt 00:00:07]} 3. Nc3 {[%clk 01:31:34]} {[%emt 00:00:20]} c6 {[%clk
01:31:41]} {[%emt 00:00:11]} 4. Nf3 {[%clk 01:31:47]} {[%emt 00:00:18]} dxc4
{[%clk 01:31:50]} {[%emt 00:00:21]} 5. e3 {[%clk 01:28:43]} {[%emt 00:03:33]}
b5 {[%clk 01:32:09]} {[%emt 00:00:11]} 6. a4 {[%clk 01:27:05]} {[%emt
00:02:08]} Bb4 {[%clk 01:32:28]} {[%emt 00:00:11]} 7. Bd2 {[%clk 01:25:46]}
{[%emt 00:01:50]} a5 {[%clk 01:32:42]} {[%emt 00:00:15]} 8. axb5 {[%clk
01:21:23]} {[%emt 00:04:53]} Bxc3 {[%clk 01:32:54]} {[%emt 00:00:18]} 9. Bxc3
{[%clk 01:21:06]} {[%emt 00:00:47]} cxb5 {[%clk 01:33:23]} {[%emt 00:00:02]} 10.
b3 {[%clk 01:20:37]} {[%emt 00:00:59]} Bb7 {[%clk 01:33:44]} {[%emt 00:00:09]}
11. bxc4 {[%clk 01:18:12]} {[%emt 00:02:55]} b4 {[%clk 01:34:04]} {[%emt
00:00:10]} 12. Bb2 {[%clk 01:16:27]} {[%emt 00:02:15]} Nf6 {[%clk 01:34:32]}
{[%emt 00:00:02]} 13. Be2 {[%clk 01:12:17]} {[%emt 00:04:39]} O-O {[%clk
01:34:56]} {[%emt 00:00:06]} 14. O-O {[%clk 01:10:21]} {[%emt 00:02:25]} Nbd7
{[%clk 01:35:25]} 15. Nd2 {[%clk 01:06:24]} {[%emt 00:04:29]} Qc7 {[%clk
01:33:25]} {[%emt 00:02:29]} 16. f3 {[%clk 01:04:37]} {[%emt 00:02:18]} e5
{[%clk 01:31:20]} {[%emt 00:02:35]} 17. Kh1 {[%clk 01:02:31]} {[%emt 00:02:36]}
Rfe8 {[%clk 01:27:50]} {[%emt 00:04:00]} 18. d5 {[%clk 00:57:15]} {[%emt
00:05:47]} Nc5 {[%clk 01:27:29]} {[%emt 00:00:51]} 19. Nb3 {[%clk 00:55:25]}
{[%emt 00:02:19]} Nxb3 {[%clk 01:25:27]} {[%emt 00:02:32]} 20. Qxb3 {[%clk
00:55:49]} {[%emt 00:00:06]} Nd7 {[%clk 01:25:24]} {[%emt 00:00:32]} 21. e4
{[%clk 00:53:55]} {[%emt 00:02:25]} Nc5 {[%clk 01:25:35]} {[%emt 00:00:19]} 22.
Qe3 {[%clk 00:53:48]} {[%emt 00:00:37]} a4 {[%clk 01:23:45]} {[%emt 00:02:21]}
23. f4 {[%clk 00:52:31]} {[%emt 00:01:46]} f6 {[%clk 01:23:47]} {[%emt
00:00:28]} 24. fxe5 {[%clk 00:51:25]} {[%emt 00:01:37]} fxe5 {[%clk 01:24:15]}
{[%emt 00:00:02]} 25. Rf5 {[%clk 00:50:54]} {[%emt 00:01:00]} a3 {[%clk
01:24:05]} {[%emt 00:00:41]} 26. Bxe5 {[%clk 00:48:39]} {[%emt 00:02:45]} Rxe5
{[%clk 01:24:22]} {[%emt 00:00:14]} 27. Qf4 {[%clk 00:45:39]} {[%emt 00:03:28]}
Nd7 {[%clk 01:20:34]} {[%emt 00:04:18]} 28. Rf7 {[%clk 00:41:45]} {[%emt
00:04:25]} Rf8 {[%clk 01:05:41]} {[%emt 00:15:22]} 29. Rf1 {[%clk 00:36:43]}
{[%emt 00:05:33]} Qb8 {[%clk 01:00:33]} {[%emt 00:05:38]} 30. c5 {[%clk
00:32:05]} {[%emt 00:05:09]} Ree8 {[%clk 00:50:00]} {[%emt 00:11:03]} 31. Qxb8
{[%clk 00:15:26]} {[%emt 00:17:09]} Rxb8 {[%clk 00:49:17]} {[%emt 00:01:12]} 32.
Rxf8+ {[%clk 00:05:58]} {[%emt 00:09:59]} Rxf8 {[%clk 00:49:20]} {[%emt
00:00:26]} 33. c6 {[%clk 00:04:49]} {[%emt 00:01:40]} Rxf1+ {[%clk 00:45:19]}
{[%emt 00:04:31]} 34. Bxf1 {[%clk 00:05:05]} {[%emt 00:00:15]} Bxc6 {[%clk
00:45:19]} {[%emt 00:00:31]} 35. dxc6 {[%clk 00:05:12]} {[%emt 00:00:23]} Nb6
{[%clk 00:45:38]} {[%emt 00:00:10]} 36. c7 {[%clk 00:05:10]} {[%emt 00:00:33]}
Kf8 {[%clk 00:45:55]} {[%emt 00:00:12]} 37. Bc4 {[%clk 00:05:08]} {[%emt
00:00:31]} Ke7 {[%clk 00:46:13]} {[%emt 00:00:12]} 38. Kg1 {[%clk 00:04:36]}
{[%emt 00:01:04]} Kd7 {[%clk 00:46:28]} {[%emt 00:00:14]} 39. Bb3 {[%clk
00:04:25]} {[%emt 00:00:40]} Kxc7 {[%clk 00:46:44]} {[%emt 00:00:15]} 40. Kf2
{[%clk 00:04:23]} {[%emt 00:00:32]} Nd7 {[%clk 00:46:49]} {[%emt 00:00:25]} 41.
Ke3 {[%clk 00:02:19]} {[%emt 00:02:35]} Nc5 {[%clk 00:47:17]} {[%emt 00:00:02]}
42. Bg8 {[%clk 00:02:37]} {[%emt 00:00:12]} b3 {[%clk 00:47:37]} {[%emt
00:00:10]} 43. Kd4 {[%emt 00:00:09]} 0-1

[Event "Pobeskydi 2026"]
[Site "Frydek-Mistek, Czech Republic"]
[Date "2026.04.03"]
[Round "4.4"]
[White "Haasova, Timea"]
[Black "Durana, Jonas"]
[Result "1-0"]
[TimeControl "90 min+30s/move"]
[WhiteTitle "-"]
[BlackTitle "-"]
[WhiteFideId "14960109"]
[BlackFideId "73619663"]
[WhiteElo "2012"]
[BlackElo "2183"]

1. e4 {[%clk 01:30:57]} {[%emt 00:00:01]} c5 {[%clk 01:30:54]} {[%emt
00:00:06]} 2. Nf3 {[%clk 01:31:21]} {[%emt 00:00:07]} d6 {[%clk 01:31:14]}
{[%emt 00:00:06]} 3. d4 {[%clk 01:31:43]} {[%emt 00:00:12]} cxd4 {[%clk
01:31:40]} {[%emt 00:00:04]} 4. Nxd4 {[%clk 01:32:09]} {[%emt 00:00:04]} Nf6
{[%clk 01:32:03]} {[%emt 00:00:07]} 5. Nc3 {[%clk 01:32:33]} {[%emt 00:00:06]}
a6 {[%clk 01:32:29]} {[%emt 00:00:05]} 6. h3 {[%clk 01:32:49]} {[%emt
00:00:14]} e5 {[%clk 01:32:53]} {[%emt 00:00:06]} 7. Nb3 {[%clk 01:33:09]}
{[%emt 00:00:09]} Be6 {[%clk 01:31:56]} {[%emt 00:01:27]} 8. f4 {[%clk
01:33:23]} {[%emt 00:00:16]} Be7 {[%clk 01:25:25]} {[%emt 00:07:02]} 9. f5
{[%clk 01:31:46]} {[%emt 00:02:07]} Bc8 {[%clk 01:25:08]} {[%emt 00:00:46]} 10.
g4 {[%clk 01:27:33]} {[%emt 00:04:45]} Nfd7 {[%clk 01:14:03]} {[%emt 00:11:34]}
11. Be3 {[%clk 01:22:22]} {[%emt 00:05:41]} Nc6 {[%clk 00:59:23]} {[%emt
00:15:10]} 12. Qd2 {[%clk 01:20:14]} {[%emt 00:02:38]} b5 {[%clk 00:54:46]}
{[%emt 00:05:08]} 13. O-O-O {[%clk 01:14:34]} {[%emt 00:06:09]} Bb7 {[%clk
00:54:36]} {[%emt 00:00:39]} 14. Bg2 {[%clk 01:10:50]} {[%emt 00:04:15]} Na5
{[%clk 00:47:38]} {[%emt 00:07:28]} 15. Nxa5 {[%clk 01:06:33]} {[%emt
00:04:47]} Qxa5 {[%clk 00:48:04]} {[%emt 00:00:04]} 16. Kb1 {[%clk 01:05:40]}
{[%emt 00:01:24]} Qc7 {[%clk 00:46:36]} {[%emt 00:01:58]} 17. g5 {[%clk
00:44:13]} {[%emt 00:21:56]} Rc8 {[%clk 00:34:03]} {[%emt 00:13:02]} 18. Qf2
{[%clk 00:40:47]} {[%emt 00:03:56]} Qc4 {[%clk 00:21:31]} {[%emt 00:13:02]} 19.
Rhf1 {[%clk 00:32:17]} {[%emt 00:09:01]} Nc5 {[%clk 00:17:49]} {[%emt
00:04:12]} 20. f6 {[%clk 00:19:57]} {[%emt 00:12:50]} gxf6 {[%clk 00:18:10]}
{[%emt 00:00:09]} 21. gxf6 {[%clk 00:20:05]} {[%emt 00:00:23]} Bf8 {[%clk
00:18:34]} {[%emt 00:00:06]} 22. Qf5 {[%clk 00:16:17]} {[%emt 00:04:17]} Ne6
{[%clk 00:09:32]} {[%emt 00:09:31]} 23. Rf2 {[%clk 00:14:51]} {[%emt 00:01:57]}
Qc7 {[%clk 00:05:19]} {[%emt 00:04:42]} 24. Bf3 {[%clk 00:13:28]} {[%emt
00:01:54]} Qd7 {[%clk 00:03:11]} {[%emt 00:02:38]} 25. Rfd2 {[%clk 00:11:30]}
{[%emt 00:02:28]} Nc5 {[%clk 00:01:39]} {[%emt 00:02:02]} 26. Qh5 {[%clk
00:11:15]} {[%emt 00:00:46]} Qd8 {[%clk 00:01:38]} {[%emt 00:00:31]} 27. Bg4
{[%clk 00:10:44]} {[%emt 00:01:01]} Nd7 {[%clk 00:00:59]} {[%emt 00:01:08]} 28.
Bxd7+ {[%clk 00:08:41]} {[%emt 00:02:34]} Qxd7 {[%clk 00:01:25]} {[%emt
00:00:04]} 29. Qxe5+ {[%clk 00:09:02]} {[%emt 00:00:08]} Qe6 {[%clk 00:01:53]}
{[%emt 00:00:02]} 30. Qd4 {[%clk 00:05:57]} {[%emt 00:03:36]} Rg8 {[%clk
00:01:09]} {[%emt 00:01:13]} 31. Bf4 {[%clk 00:05:15]} {[%emt 00:01:13]} Rd8
{[%clk 00:00:54]} {[%emt 00:00:44]} 32. Qb6 {[%clk 00:03:20]} {[%emt 00:02:25]}
Qxf6 {[%clk 00:01:20]} {[%emt 00:00:04]} 33. Qxb7 {[%clk 00:03:10]} {[%emt
00:00:41]} Qxf4 {[%clk 00:01:29]} {[%emt 00:00:20]} 34. Nd5 {[%clk 00:02:37]}
{[%emt 00:01:03]} Qe5 {[%clk 00:01:45]} {[%emt 00:00:14]} 35. Rf2 {[%clk
00:02:09]} {[%emt 00:00:59]} Be7 {[%clk 00:01:38]} {[%emt 00:00:36]} 36. Rf5
{[%clk 00:02:05]} {[%emt 00:00:34]} Rd7 {[%clk 00:00:56]} {[%emt 00:01:12]} 37.
Qxd7+ {[%clk 00:02:18]} {[%emt 00:00:17]} Kxd7 {[%clk 00:01:19]} {[%emt
00:00:07]} 38. Rxe5 {[%clk 00:02:42]} {[%emt 00:00:07]} 1-0